fUSD/lending_fUSD_20240214
["ID","MTS","AMOUNT","RATE_DAILY","PERIOD"]
[314002899,1707922250077,-500.0,0.00036712,2]
[314002900,1707922250087,-1519.2,0.00036712,2]
[314002901,1707922250097,-500.0,0.00036712,2]
[314002902,1707922250107,-500.0,0.00036712,2]
[314002903,1707922250117,-5465.66,0.00036712,2]
[314002904,1707922250128,-501.69,0.00036712,2]
[314002905,1707922250138,-500.0,0.00036712,2]
[314002906,1707922250148,-500.0,0.00036712,2]
[314002907,1707922250158,-500.0,0.00036712,2]
[314002908,1707922250167,-500.0,0.00036712,2]
[314002909,1707922250178,-525.77986965,0.00036712,2]
[314002910,1707922250188,-515.26668003,0.00036712,2]
[314002911,1707922250198,-675.71,0.00036712,2]
[314002912,1707922250208,-663.56,0.00036712,2]
[314002913,1707922250217,-7374.48,0.00036712,2]
[314002914,1707922250227,-774.51,0.00036712,2]
[314002915,1707922250237,-500.0,0.00036712,2]
[314002916,1707922250246,-500.0,0.00036712,2]
[314002917,1707922250256,-500.0,0.00036712,2]
[314002918,1707922250265,-987.87,0.00036712,2]
[314002919,1707922250278,-500.0,0.00036712,2]
[314002920,1707922250288,-1065.75,0.00036712,2]
[314002921,1707922250298,-500.0,0.00036712,2]
[314002922,1707922250307,-500.0,0.00036712,2]
[314002923,1707922250317,-500.0,0.00036712,2]
[314002924,1707922250326,-500.0,0.00036712,2]
[314002925,1707922250336,-1077.82,0.00036712,2]
[314002926,1707922250345,-500.0,0.00036712,2]
[314002927,1707922250355,-837.25,0.00036712,2]
[314002928,1707922250364,-500.0,0.00036712,2]
[314002929,1707922250374,-537.13202264,0.00036712,2]
[314002930,1707922250384,-508.51590396,0.00036712,2]
[314002931,1707922250393,-1136.21,0.00036712,2]
[314002932,1707922250403,-1239.19,0.00036712,2]
[314002933,1707922250413,-4429.77,0.00036712,2]
[314002934,1707922250422,-500.0,0.00036712,2]
[314002935,1707922250432,-1063.82,0.00036712,2]
[314002936,1707922250442,-500.0,0.00036712,2]
[314002937,1707922250452,-2212.71,0.00036712,2]
[314002938,1707922250461,-890.89,0.00036712,2]
[314002939,1707922250471,-608.6,0.00036712,2]
[314002940,1707922250481,-500.0,0.00036712,2]
[314002941,1707922250491,-1033.57,0.00036712,2]
[314002942,1707922250500,-1901.13,0.00036712,2]
[314002943,1707922250510,-500.0,0.00036712,2]
[314002944,1707922250520,-500.0,0.00036712,2]
[314002945,1707922250532,-500.0,0.00036712,2]
[314002946,1707922250542,-9515.71,0.00036712,2]
[314002947,1707922250551,-542.05442267,0.00036712,2]
[314002948,1707922250562,-500.0,0.00036712,2]
[314002949,1707922250573,-2217.93,0.00036712,2]
[314002950,1707922250584,-500.0,0.00036712,2]
[314002951,1707922250594,-691.56,0.00036712,2]
[314002952,1707922250678,-500.0,0.00036712,2]
[314002953,1707922250689,-547.71,0.00036712,2]
[314002954,1707922250699,-591.31,0.00036712,2]
[314002955,1707922250710,-500.0,0.00036712,2]
[314002956,1707922250720,-500.0,0.00036712,2]
[314002957,1707922250731,-3952.0,0.00036712,2]
[314002958,1707922250741,-500.0,0.00036712,2]
[314002959,1707922250750,-500.0,0.00036712,2]
[314002960,1707922250760,-3385.49,0.00036712,2]
[314002961,1707922250770,-500.0,0.00036712,2]
[314002962,1707922250783,-670.6,0.00036712,2]
[314002963,1707922250793,-500.0,0.00036712,2]
[314002964,1707922250803,-500.0,0.00036712,2]
[314002965,1707922250813,-500.0,0.00036712,2]
[314002966,1707922250822,-4227.26,0.00036712,2]
[314002967,1707922250832,-500.0,0.00036712,2]
[314002968,1707922250842,-500.0,0.00036712,2]
[314002969,1707922250852,-500.0,0.00036712,2]
[314002970,1707922250862,-2400.94,0.00036712,2]
[314002971,1707922250871,-908.45,0.00036712,2]
[314002972,1707922250880,-500.0,0.00036712,2]
[314002973,1707922250891,-500.0,0.00036712,2]
[314002974,1707922250901,-473.43690034,0.00036712,2]
[314002975,1707922250910,-519.29671125,0.00036712,2]
[314002976,1707922250922,-865.54,0.00036712,2]
[314002977,1707922250932,-500.0,0.00036712,2]
[314002978,1707922250942,-1094.68,0.00036712,2]
[314002979,1707922250951,-500.0,0.00036712,2]
[314002980,1707922250962,-500.0,0.00036712,2]
[314002981,1707922250972,-36067.24,0.00036712,2]
[314002982,1707922250982,-500.0,0.00036712,2]
[314002983,1707922250992,-500.0,0.00036712,2]
[314002984,1707922251002,-1009.39,0.00036712,2]
[314002985,1707922251012,-500.0,0.00036712,2]
[314002986,1707922251023,-500.0,0.00036712,2]
[314002987,1707922251033,-500.0,0.00036712,2]
[314002988,1707922251042,-686.35,0.00036712,2]
[314002989,1707922251052,-672.14,0.00036712,2]
[314002990,1707922251062,-594.1,0.00036712,2]
[314002991,1707922251072,-1009.36,0.00036712,2]
[314002992,1707922251081,-500.0,0.00036712,2]
[314002993,1707922251091,-175.03721412,0.00036712,2]
[314002994,1707922251101,-500.0,0.00036712,2]
[314002995,1707922251110,-3382.18,0.00036712,2]
[314002996,1707922251120,-521.72,0.00036712,2]
[314002997,1707922251129,-8403.39,0.00036712,2]
[314002998,1707922251138,-500.0,0.00036712,2]
[314002999,1707922251148,-522.99,0.00036712,2]
[314003000,1707922251158,-952.56,0.00036712,2]
[314003001,1707922251167,-506.05427492,0.00036712,2]
[314003002,1707922251177,-500.0,0.00036712,2]
[314003003,1707922251187,-500.0,0.00036712,2]
[314003004,1707922251197,-609.77,0.00036712,2]
[314003005,1707922251207,-500.0,0.00036712,2]
[314003006,1707922251217,-500.0,0.00036712,2]
[314003007,1707922251228,-500.0,0.00036712,2]
[314003008,1707922251237,-500.0,0.00036712,2]
[314003009,1707922251246,-500.0,0.00036712,2]
[314003010,1707922251255,-500.0,0.00036712,2]
[314003011,1707922251265,-500.0,0.00036712,2]
[314003012,1707922251276,-1592.96,0.00036712,2]
[314003013,1707922251286,-793.51,0.00036712,2]
[314003014,1707922251296,-1138.92,0.00036712,2]
[314003015,1707922251305,-872.27,0.00036712,2]
[314003016,1707922251315,-3696.86,0.00036712,2]
[314003017,1707922251325,-500.0,0.00036712,2]
[314003018,1707922251335,-1091.42,0.00036712,2]
[314003019,1707922251345,-500.0,0.00036712,2]
[314003020,1707922251354,-500.0,0.00036712,2]
[314003021,1707922251363,-500.0,0.00036712,2]
[314003022,1707922251372,-500.0,0.00036712,2]
[314003023,1707922251382,-500.0,0.00036712,2]
[314003024,1707922251391,-500.0,0.00036712,2]
[314003025,1707922251400,-500.0,0.00036712,2]
[314003026,1707922251410,-500.0,0.00036712,2]
[314003027,1707922251421,-500.0,0.00036712,2]
[314003028,1707922251430,-932.74,0.00036712,2]
[314003029,1707922251439,-500.0,0.00036712,2]
[314003030,1707922251449,-531.46,0.00036712,2]
[314003031,1707922251459,-500.0,0.00036712,2]
[314003032,1707922251470,-2584.03,0.00036712,2]
[314003033,1707922251479,-3521.46,0.00036712,2]
[314003034,1707922251490,-682.49,0.00036712,2]
[314003035,1707922251500,-5553.68,0.00036712,2]
[314003036,1707922251510,-500.0,0.00036712,2]
[314003037,1707922251520,-500.0,0.00036712,2]
[314003038,1707922251534,-500.0,0.00036712,2]
[314003039,1707922251543,-778.1,0.00036712,2]
[314003040,1707922251552,-641.54,0.00036712,2]
[314003041,1707922251563,-500.0,0.00036712,2]
[314003042,1707922251573,-729.43,0.00036712,2]
[314003043,1707922251584,-1576.35,0.00036712,2]
[314003044,1707922251594,-500.0,0.00036712,2]
[314003045,1707922251604,-500.0,0.00036712,2]
[314003046,1707922251617,-500.0,0.00036712,2]
[314003047,1707922251627,-511.88363779,0.00036712,2]
[314003048,1707922251638,-500.0,0.00036712,2]
[314003049,1707922251651,-500.0,0.00036712,2]
[314003050,1707922251661,-505.19132651,0.00036712,2]
[314003051,1707922251670,-500.0,0.00036712,2]
[314003052,1707922251682,-911.59,0.00036712,2]
[314003053,1707922251693,-500.0,0.00036712,2]
[314003054,1707922251703,-500.0,0.00036712,2]
[314003055,1707922251714,-2300.79,0.00036712,2]
[314003056,1707922251727,-500.0,0.00036712,2]
[314003057,1707922251738,-500.0,0.00036712,2]
[314003058,1707922251748,-1050.88,0.00036712,2]
[314003059,1707922251758,-591.88,0.00036712,2]
[314003060,1707922251768,-688.71,0.00036712,2]
[314003061,1707922251780,-1778.25,0.00036712,2]
[314003062,1707922251790,-500.0,0.00036712,2]
[314003063,1707922251799,-500.0,0.00036712,2]
[314003064,1707922251810,-1696.84,0.00036712,2]
[314003065,1707922251820,-500.0,0.00036712,2]
[314003066,1707922251830,-1200.7,0.00036712,2]
[314003067,1707922251839,-500.0,0.00036712,2]
[314003068,1707922251849,-500.0,0.00036712,2]
[314003069,1707922251858,-1331.35,0.00036712,2]
[314003070,1707922251867,-606.70409862,0.00036712,2]
[314003071,1707922251877,-1004.66,0.00036712,2]
[314003072,1707922251886,-614.78536327,0.00036712,2]
[314003073,1707922251896,-829.59,0.00036712,2]
[314003074,1707922251905,-1165.08,0.00036712,2]
[314003075,1707922251915,-500.0,0.00036712,2]
[314003076,1707922251924,-500.0,0.00036712,2]
[314003077,1707922251933,-500.0,0.00036712,2]
[314003078,1707922251944,-1087.69,0.00036712,2]
[314003079,1707922251953,-3784.81,0.00036712,2]
[314003080,1707922251964,-500.0,0.00036712,2]
[314003081,1707922251974,-0.19065542,0.00036712,2]
[314003082,1707922252667,-1308.23934458,0.00036712,2]
[314003083,1707922252678,-1230.79,0.00036712,2]
[314003084,1707922252688,-568.08,0.00036712,2]
[314003085,1707922252697,-1261.43,0.00036712,2]
[314003086,1707922252706,-835.44,0.00036712,2]
[314003087,1707922252717,-690.74,0.00036712,2]
[314003088,1707922252726,-500.0,0.00036712,2]
[314003089,1707922252736,-563.85,0.00036712,2]
[314003090,1707922252746,-7779.92,0.00036712,2]
[314003091,1707922252755,-710.69,0.00036712,2]
[314003092,1707922252765,-500.0,0.00036712,2]
[314003093,1707922252776,-500.0,0.00036712,2]
[314003094,1707922252786,-500.0,0.00036712,2]
[314003095,1707922252796,-7841.98373704,0.00036712,2]
[314003096,1707922252817,-3215.39626296,0.00036712,2]
[314003097,1707922252827,-815.58,0.00036712,2]
[314003098,1707922252838,-12353.88,0.00036712,2]
[314003099,1707922252849,-500.0,0.00036712,2]
[314003100,1707922252860,-847.01,0.00036712,2]
[314003101,1707922252869,-605.34,0.00036712,2]
[314003102,1707922252879,-500.0,0.00036712,2]
[314003103,1707922252890,-500.0,0.00036712,2]
[314003104,1707922252900,-500.0,0.00036712,2]
[314003105,1707922252910,-500.0,0.00036712,2]
[314003106,1707922252920,-5879.62,0.00036712,2]
[314003107,1707922252930,-500.0,0.00036712,2]
[314003108,1707922252941,-500.0,0.00036712,2]
[314003109,1707922252951,-3211.25,0.00036712,2]
[314003110,1707922252960,-2461.78,0.00036712,2]
[314003111,1707922252971,-500.0,0.00036712,2]
[314003112,1707922252981,-986.21,0.00036712,2]
[314003113,1707922252991,-500.0,0.00036712,2]
[314003114,1707922253000,-500.0,0.00036712,2]
[314003115,1707922253011,-500.0,0.00036712,2]
[314003116,1707922253020,-500.0,0.00036712,2]
[314003117,1707922253033,-500.0,0.00036712,2]
[314003118,1707922253044,-500.0,0.00036712,2]
[314003119,1707922253054,-500.0,0.00036712,2]
[314003120,1707922253065,-740.13,0.00036712,2]
[314003121,1707922253076,-1789.55,0.00036712,2]
[314003122,1707922253088,-500.0,0.00036712,2]
[314003123,1707922253098,-3422.12,0.00036712,2]
[314003124,1707922253109,-1879.94,0.00036712,2]
[314003125,1707922253119,-500.0,0.00036712,2]
[314003126,1707922253129,-1395.01,0.00036712,2]
[314003127,1707922253140,-500.0,0.00036712,2]
[314003128,1707922253150,-1337.81,0.00036712,2]
[314003129,1707922253161,-3293.72,0.00036712,2]
[314003130,1707922253172,-11659.05,0.00036712,2]
[314003131,1707922253183,-1347.87,0.00036712,2]
[314003132,1707922253194,-500.0,0.00036712,2]
[314003133,1707922253205,-1185.25,0.00036712,2]
[314003134,1707922253216,-17691.87,0.00036712,2]
[314003135,1707922253228,-500.0,0.00036712,2]
[314003136,1707922253241,-500.0,0.00036712,2]
[314003137,1707922253252,-711.77,0.00036712,2]
[314003138,1707922253262,-607.79,0.00036712,2]
[314003139,1707922253271,-520.44,0.00036712,2]
[314003140,1707922253283,-177.77903235,0.00036712,2]
[314003141,1707922253294,-500.0,0.00036712,2]
[314003142,1707922253303,-1671.0,0.00036712,2]
[314003143,1707922253313,-500.0,0.00036712,2]
[314003144,1707922253323,-1136.03,0.00036712,2]
[314003145,1707922253335,-811.5,0.00036712,2]
[314003146,1707922253347,-4964.52,0.00036712,2]
[314003147,1707922253358,-1015.7,0.00036712,2]
[314003148,1707922253367,-500.0,0.00036712,2]
[314003149,1707922253380,-500.0,0.00036712,2]
[314003150,1707922253390,-695.89,0.00036712,2]
[314003151,1707922253399,-989.66,0.00036712,2]
[314003152,1707922253409,-500.0,0.00036712,2]
[314003153,1707922253418,-500.0,0.00036712,2]
[314003154,1707922253428,-500.0,0.00036712,2]
[314003155,1707922253437,-261.72692194,0.00036712,2]
[314003156,1707922253447,-880.3,0.00036712,2]
[314003157,1707922253456,-310.21501306,0.00036712,2]
[314003158,1707922253466,-4391.07,0.00036712,2]
[314003159,1707922253476,-500.0,0.00036712,2]
[314003160,1707922253486,-2408.6,0.00036712,2]
[314003161,1707922253495,-688.22,0.00036712,2]
[314003162,1707922253504,-500.0,0.00036712,2]
[314003163,1707922253514,-4370.3,0.00036712,2]
[314003164,1707922253525,-500.0,0.00036712,2]
[314003165,1707922253534,-874.31,0.00036712,2]
[314003166,1707922253544,-500.0,0.00036712,2]
[314003167,1707922253553,-1058.08,0.00036712,2]
[314003168,1707922253563,-623.37,0.00036712,2]
[314003169,1707922253573,-500.0,0.00036712,2]
[314003170,1707922253582,-3010.04,0.00036712,2]
[314003171,1707922253593,-500.0,0.00036712,2]
[314003172,1707922253602,-1122.83,0.00036712,2]
[314003173,1707922253615,-5573.69,0.00036712,2]
[314003174,1707922253624,-500.0,0.00036712,2]
[314003175,1707922253634,-1101.53,0.00036712,2]
[314003176,1707922253643,-752.74,0.00036712,2]
[314003177,1707922253654,-633.26,0.00036712,2]
[314003178,1707922253663,-500.0,0.00036712,2]
[314003179,1707922253673,-500.0,0.00036712,2]
[314003180,1707922253682,-500.0,0.00036712,2]
[314003181,1707922253692,-507.15958395,0.00036712,2]
[314003182,1707922253702,-552.88,0.00036712,2]
[314003183,1707922253713,-765.76,0.00036712,2]
[314003184,1707922253723,-1402.76,0.00036712,2]
[314003185,1707922253733,-500.0,0.00036712,2]
[314003186,1707922253743,-870.49,0.00036712,2]
[314003187,1707922253753,-500.0,0.00036712,2]
[314003188,1707922253763,-1879.75,0.00036712,2]
[314003189,1707922253773,-500.0,0.00036712,2]
[314003190,1707922253785,-500.0,0.00036712,2]
[314003191,1707922253795,-744.29,0.00036712,2]
[314003192,1707922253804,-500.0,0.00036712,2]
[314003193,1707922253814,-4876.05,0.00036712,2]
[314003194,1707922253824,-500.0,0.00036712,2]
[314003195,1707922253834,-2192.38,0.00036712,2]
[314003196,1707922253844,-2960.59,0.00036712,2]
[314003197,1707922253854,-500.0,0.00036712,2]
[314003198,1707922253865,-500.0,0.00036712,2]
[314003199,1707922253875,-274.8547982,0.00036712,2]
[314003200,1707922253885,-500.0,0.00036712,2]
[314003201,1707922253895,-5945.41,0.00036712,2]
[314003202,1707922253904,-500.0,0.00036712,2]
[314003203,1707922253913,-752.65,0.00036712,2]
[314003204,1707922253923,-841.56,0.00036712,2]
[314003205,1707922253933,-808.42,0.00036712,2]
[314003206,1707922253943,-12165.71,0.00036712,2]
[314003207,1707922253953,-500.0,0.00036712,2]
[314003208,1707922253963,-1561.4,0.00036712,2]
[314003209,1707922253972,-500.0,0.00036712,2]
[314003210,1707922253982,-6638.86,0.00036712,2]
[314003211,1707922253991,-531.92227267,0.00036712,2]
[314003212,1707922254001,-500.0,0.00036712,2]
[314003213,1707922254011,-502.27,0.00036712,2]
[314003214,1707922254021,-500.0,0.00036712,2]
[314003215,1707922254032,-1023.94,0.00036712,2]
[314003216,1707922254041,-500.0,0.00036712,2]
[314003217,1707922254051,-500.0,0.00036712,2]
[314003218,1707922254061,-500.0,0.00036712,2]
[314003219,1707922254072,-15162.16,0.00036712,2]
[314003220,1707922254082,-1022.37,0.00036712,2]
[314003221,1707922254092,-693.17,0.00036712,2]
[314003222,1707922254102,-516.14168844,0.00036712,2]
[314003223,1707922254111,-500.0,0.00036712,2]
[314003224,1707922254122,-500.0,0.00036712,2]
[314003225,1707922254134,-3780.51,0.00036712,2]
[314003226,1707922254144,-1715.92,0.00036712,2]
[314003227,1707922254154,-500.0,0.00036712,2]
[314003228,1707922254165,-500.0,0.00036712,2]
[314003229,1707922254175,-955.23,0.00036712,2]
[314003230,1707922254184,-1097.9,0.00036712,2]
[314003231,1707922254194,-1241.96,0.00036712,2]
[314003232,1707922254204,-500.0,0.00036712,2]
[314003233,1707922254214,-500.0,0.00036712,2]
[314003234,1707922254223,-500.0,0.00036712,2]
[314003235,1707922254232,-1031.21,0.00036712,2]
[314003236,1707922254242,-500.0,0.00036712,2]
[314003237,1707922254253,-741.56,0.00036712,2]
[314003238,1707922254262,-3528.08,0.00036712,2]
[314003239,1707922254272,-989.74,0.00036712,2]
[314003240,1707922254283,-2966.06,0.00036712,2]
[314003241,1707922254293,-1787.69,0.00036712,2]
[314003242,1707922254303,-694.94,0.00036712,2]
[314003243,1707922254313,-2172.67,0.00036712,2]
[314003244,1707922254323,-1067.74,0.00036712,2]
[314003245,1707922254333,-708.87,0.00036712,2]
[314003246,1707922254343,-899.23,0.00036712,2]
[314003247,1707922254353,-904.07,0.00036712,2]
[314003248,1707922254363,-500.0,0.00036712,2]
[314003249,1707922254374,-1000.0,0.00036712,7]
[314003250,1707922254383,-872.86,0.00036712,2]
[314003251,1707922254393,-1286.3,0.00036712,2]
[314003252,1707922254403,-496.05104263,0.00036712,2]
[314003253,1707922254413,-3563.63,0.00036712,2]
[314003254,1707922254423,-1685.99,0.00036712,2]
[314003255,1707922254433,-1587.05,0.00036712,7]
[314003256,1707922254443,-567.05,0.00036712,2]
[314003257,1707922254452,-708.41,0.00036712,2]
[314003258,1707922254462,-1475.43,0.00036712,2]
[314003259,1707922254471,-500.0,0.00036712,2]
[314003260,1707922254481,-1127.39,0.00036712,2]
[314003261,1707922254491,-500.0,0.00036712,2]
[314003262,1707922254500,-1006.29,0.00036712,2]
[314003263,1707922254509,-500.0,0.00036712,2]
[314003264,1707922254519,-506.38746216,0.00036712,2]
[314003265,1707922254529,-920.07,0.00036712,2]
[314003266,1707922254538,-500.0,0.00036712,2]
[314003267,1707922254548,-506.26590025,0.00036712,2]
[314003268,1707922254557,-16709.33,0.00036712,2]
[314003269,1707922254566,-686.19,0.00036712,2]
[314003270,1707922254576,-1444.13,0.00036712,2]
[314003271,1707922254585,-500.0,0.00036712,2]
[314003272,1707922254595,-1341.48,0.00036712,2]
[314003273,1707922254605,-1215.93,0.00036712,2]
[314003274,1707922254616,-500.0,0.00036712,2]
[314003275,1707922254626,-1224.32,0.00036712,2]
[314003276,1707922254639,-500.0,0.00036712,2]
[314003277,1707922254649,-500.0,0.00036712,2]
[314003278,1707922254659,-500.0,0.00036712,2]
[314003279,1707922254669,-500.0,0.00036712,2]
[314003280,1707922254678,-861.83,0.00036712,2]
[314003281,1707922254688,-3422.9,0.00036712,2]
[314003282,1707922254697,-3172.01,0.00036712,2]
[314003283,1707922254707,-803.53,0.00036712,2]
[314003284,1707922254718,-847.09,0.00036712,2]
[314003285,1707922254729,-1768.97,0.00036712,2]
[314003286,1707922254739,-833.17,0.00036712,2]
[314003287,1707922254749,-279.89835983,0.00036712,2]
[314003288,1707922254759,-500.0,0.00036712,2]
[314003289,1707922254768,-1024.62,0.00036712,2]
[314003290,1707922254779,-500.0,0.00036712,2]
[314003291,1707922254789,-500.0,0.00036712,2]
[314003292,1707922254800,-500.0,0.00036712,2]
[314003293,1707922254809,-2141.31,0.00036712,2]
[314003294,1707922254819,-893.62,0.00036712,2]
[314003295,1707922254829,-500.0,0.00036712,2]
[314003296,1707922254839,-500.0,0.00036712,2]
[314003297,1707922254850,-343.4,0.00036712,2]
[314003298,1707922254860,-1291.35,0.00036712,2]
[314003299,1707922254870,-761.24,0.00036712,2]
[314003300,1707922254879,-888.4,0.00036712,2]
[314003301,1707922254889,-500.0,0.00036712,2]
[314003302,1707922255134,-1105.18,0.00036712,2]
[314003303,1707922255145,-500.0,0.00036712,2]
[314003304,1707922255155,-6757.65,0.00036712,2]
[314003305,1707922255164,-500.0,0.00036712,2]
[314003306,1707922255173,-2271.66,0.00036712,2]
[314003307,1707922255182,-579.44,0.00036712,2]
[314003308,1707922255191,-5594.08,0.00036712,2]
[314003309,1707922255200,-4534.93,0.00036712,2]
[314003310,1707922255210,-777.68,0.00036712,2]
[314003311,1707922255220,-916.97,0.00036712,2]
[314003312,1707922255229,-4199.33,0.00036712,2]
[314003313,1707922255238,-500.0,0.00036712,2]
[314003314,1707922255247,-564.92,0.00036712,2]
[314003315,1707922255256,-1277.79,0.00036712,2]
[314003316,1707922255266,-1829.68,0.00036712,2]
[314003317,1707922255276,-801.54,0.00036712,2]
[314003318,1707922255287,-500.0,0.00036712,2]
[314003319,1707922255296,-500.0,0.00036712,2]
[314003320,1707922255305,-500.0,0.00036712,2]
[314003321,1707922255314,-500.0,0.00036712,2]
[314003322,1707922255323,-691.59,0.00036712,2]
[314003323,1707922255332,-9507.23,0.00036712,2]
[314003324,1707922255342,-156.85314889,0.00036712,2]
[314003325,1707922255352,-1545.99,0.00036712,2]
[314003326,1707922255362,-500.0,0.00036712,2]
[314003327,1707922255371,-956.26,0.00036712,2]
[314003328,1707922255381,-500.0,0.00036712,2]
[314003329,1707922255391,-500.0,0.00036712,2]
[314003330,1707922255400,-1789.07,0.00036712,5]
[314003331,1707922255410,-3561.0,0.0003676,2]
[314003332,1707922255419,-470.12,0.00036786,2]
[314003333,1707922255428,-187.94189634,0.00036786,2]
[314003334,1707922255438,-150.0,0.00036838,2]
[314003335,1707922255446,-4495.17936665,0.00036861,9]
[314003336,1707922255457,-1042.01016934,0.00036885,9]
[314003337,1707922255467,-1282.04722797,0.00036886,2]
[314003338,1707922255477,-364.90301386,0.00036886,2]
[314003339,1707922255486,-154.90383765,0.00036886,2]
[314003340,1707922255496,-916.72861721,0.00036886,2]
[314003341,1707922255505,-3067.01146239,0.00036886,2]
[314003342,1707922255514,-290.46470402,0.00036886,2]
[314003343,1707922255524,-365.7107022,0.0003694,4]
[314003344,1707922255535,-1017.6414,0.00036985,2]
[314003345,1707922255545,-500.0,0.00036986,2]
[314003346,1707922255556,-500.08,0.00036986,2]
[314003347,1707922255565,-500.0,0.00036986,2]
[314003348,1707922255574,-546.23,0.00036986,2]
[314003349,1707922255583,-500.0,0.00036986,2]
[314003350,1707922255593,-500.0,0.00036986,2]
[314003351,1707922255602,-500.0,0.00036986,2]
[314003352,1707922255612,-500.0,0.00036986,2]
[314003353,1707922255621,-500.0,0.00036986,2]
[314003354,1707922255634,-500.0,0.00036986,2]
[314003355,1707922255643,-500.0,0.00036986,2]
[314003356,1707922255653,-500.0,0.00036986,2]
[314003357,1707922255663,-500.0,0.00036986,2]
[314003358,1707922255672,-216.51583979,0.00036986,2]
[314003359,1707922255681,-500.0,0.00036986,2]
[314003360,1707922255691,-500.0,0.00036986,2]
[314003361,1707922255702,-535.31,0.00036986,2]
[314003362,1707922255714,-500.0,0.00036986,2]
[314003363,1707922255724,-500.0,0.00036986,2]
[314003364,1707922255734,-500.0,0.00036986,2]
[314003365,1707922255743,-500.0,0.00036986,2]
[314003366,1707922255753,-500.0,0.00036986,2]
[314003367,1707922255764,-527.90689567,0.00036986,2]
[314003368,1707922255773,-500.0,0.00036986,2]
[314003369,1707922255784,-547.15,0.00036986,2]
[314003370,1707922255794,-561.79,0.00036986,2]
[314003371,1707922255804,-642.94099338,0.00036986,2]
[314003372,1707922255814,-500.0,0.00036986,2]
[314003373,1707922255824,-500.0,0.00036986,2]
[314003374,1707922255833,-500.0,0.00036986,2]
[314003375,1707922255843,-500.0,0.00036986,2]
[314003376,1707922255854,-500.0,0.00036986,2]
[314003377,1707922255864,-500.0,0.00036986,2]
[314003378,1707922255873,-500.0,0.00036986,2]
[314003379,1707922255882,-500.0,0.00036986,2]
[314003380,1707922255892,-500.0,0.00036986,2]
[314003381,1707922255902,-500.0,0.00036986,2]
[314003382,1707922255911,-500.0,0.00036986,2]
[314003383,1707922255921,-500.0,0.00036986,2]
[314003384,1707922255931,-500.0,0.00036986,2]
[314003385,1707922255940,-500.0,0.00036986,2]
[314003386,1707922255951,-500.0,0.00036986,2]
[314003387,1707922255960,-500.0,0.00036986,2]
[314003388,1707922255969,-500.0,0.00036986,2]
[314003389,1707922255979,-180.8699564,0.00036986,2]
[314003390,1707922255988,-500.0,0.00036986,2]
[314003391,1707922255998,-500.0,0.00036986,2]
[314003392,1707922256007,-500.0,0.00036986,2]
[314003393,1707922256016,-500.0,0.00036986,2]
[314003394,1707922256027,-500.0,0.00036986,2]
[314003395,1707922256040,-500.0,0.00036986,2]
[314003396,1707922256050,-500.0,0.00036986,2]
[314003397,1707922256059,-522.41,0.00036986,2]
[314003398,1707922256069,-500.0,0.00036986,2]